[Event "Titled Tuesday Blitz June 13 Early 2023"]
[White "Wagner, Dennis"]
[Black "Rangel, Daniel"]
[WhiteFideId "24650684"]
[BlackFideId "2124475"]
[WhiteElo "2478"]
[BlackElo "2231"]
[Result "1-0"]
[Round "1"]
[TimeControl "180+2"]
[Date "2023.06.13"]
[WhiteClock "0:00:17"]
[BlackClock "0:00:12"]
[Board "108"]

1. e4 {[%clk 0:03:00]}  c5 {[%clk 0:02:58]} 2. Nf3 {[%clk 0:03:00]}  g6 {[%clk 0:02:55]} 3. c3 {[%clk 0:02:57]}  Bg7 {[%clk 0:02:55]} 4. d4 {[%clk 0:02:58]}  cxd4 {[%clk 0:02:56]} 5. cxd4 {[%clk 0:02:59]}  d5 {[%clk 0:02:55]} 6. e5 {[%clk 0:02:57]}  Bg4 {[%clk 0:02:55]} 7. Nbd2 {[%clk 0:02:56]}  e6 {[%clk 0:02:55]} 8. h3 {[%clk 0:02:56]}  Bxf3 {[%clk 0:02:54]} 9. Nxf3 {[%clk 0:02:57]}  Ne7 {[%clk 0:02:54]} 10. Be2 {[%clk 0:02:46]}  O-O {[%clk 0:02:54]} 11. O-O {[%clk 0:02:46]}  Nbc6 {[%clk 0:02:54]} 12. Bf4 {[%clk 0:02:42]}  Qb6 {[%clk 0:02:46]} 13. Qd2 {[%clk 0:02:42]}  Nf5 {[%clk 0:02:45]} 14. Rfd1 {[%clk 0:02:41]}  Rac8 {[%clk 0:02:42]} 15. g4 {[%clk 0:02:41]}  Nfe7 {[%clk 0:02:42]} 16. Bh6 {[%clk 0:02:38]}  Na5 {[%clk 0:02:35]} 17. Bxg7 {[%clk 0:02:35]}  Kxg7 {[%clk 0:02:35]} 18. b3 {[%clk 0:02:23]}  Nac6 {[%clk 0:02:22]} 19. Rac1 {[%clk 0:02:20]}  Qa5 {[%clk 0:02:19]} 20. Qb2 {[%clk 0:02:00]}  Rh8 {[%clk 0:02:06]} 21. a3 {[%clk 0:01:59]}  h5 {[%clk 0:02:05]} 22. b4 {[%clk 0:01:59]}  Qd8 {[%clk 0:02:01]} 23. Qd2 {[%clk 0:01:57]}  hxg4 {[%clk 0:02:00]} 24. hxg4 {[%clk 0:01:58]}  a6 {[%clk 0:01:27]} 25. Kg2 {[%clk 0:01:58]}  Qb6 {[%clk 0:01:26]} 26. Qf4 {[%clk 0:01:56]}  Rcg8 {[%clk 0:01:18]} 27. Qf6+ {[%clk 0:01:47]}  Kf8 {[%clk 0:01:18]} 28. Ng5 {[%clk 0:01:48]}  Nd8 {[%clk 0:01:18]} 29. Rc5 {[%clk 0:01:29]}  Ke8 {[%clk 0:01:11]} 30. Rdc1 {[%clk 0:01:24]}  Nec6 {[%clk 0:01:09]} 31. b5 {[%clk 0:01:15]}  axb5 {[%clk 0:01:08]} 32. Bxb5 {[%clk 0:01:15]}  Rh4 {[%clk 0:01:01]} 33. Nxf7 {[%clk 0:00:31]}  Rxg4+ {[%clk 0:00:56]} 34. Kh3 {[%clk 0:00:28]}  Rxd4 {[%clk 0:00:33]} 35. Nxd8 {[%clk 0:00:28]}  Qxd8 {[%clk 0:00:28]} 36. Rxc6 {[%clk 0:00:24]}  Qxf6 {[%clk 0:00:12]} 37. Rxe6+ {[%clk 0:00:23]}  Kd8 {[%clk 0:00:07]} 38. exf6 {[%clk 0:00:20]}  Rh8+ {[%clk 0:00:06]} 39. Kg3 {[%clk 0:00:20]}  Re4 {[%clk 0:00:02]} 40. Rxe4 {[%clk 0:00:17]}  dxe4 {[%clk 0:00:03]} 41. f7 {[%clk 0:00:15]}  Ke7 {[%clk 0:00:03]} 42. Rc7+ {[%clk 0:00:15]}  Kf6 {[%clk 0:00:03]} 43. Rxb7 {[%clk 0:00:14]}  Ra8 {[%clk 0:00:03]} 44. a4 {[%clk 0:00:14]}  Kg7 {[%clk 0:00:04]} 45. Kf4 {[%clk 0:00:14]}  Rd8 {[%clk 0:00:04]} 46. Kxe4 {[%clk 0:00:14]}  Rh8 {[%clk 0:00:05]} 47. Re7 {[%clk 0:00:13]}  Rh1 {[%clk 0:00:04]} 48. Kf3 {[%clk 0:00:13]}  Ra1 {[%clk 0:00:03]} 49. Kg2 {[%clk 0:00:13]}  Ra3 {[%clk 0:00:03]} 50. Ra7 {[%clk 0:00:13]}  Rc3 {[%clk 0:00:03]} 51. Be8 {[%clk 0:00:13]}  Rc5 {[%clk 0:00:03]} 52. a5 {[%clk 0:00:13]}  Kf8 {[%clk 0:00:03]} 53. a6 {[%clk 0:00:14]}  Rg5+ {[%clk 0:00:04]} 54. Kf1 {[%clk 0:00:13]}  Ra5 {[%clk 0:00:04]} 55. Ra8 {[%clk 0:00:14]}  Ra1+ {[%clk 0:00:05]} 56. Kg2 {[%clk 0:00:13]}  Ke7 {[%clk 0:00:06]} 57. Rb8 {[%clk 0:00:10]}  Rxa6 {[%clk 0:00:06]} 58. f8=Q+ {[%clk 0:00:11]}  Kxf8 {[%clk 0:00:06]} 59. Bb5+ {[%clk 0:00:11]}  Kg7 {[%clk 0:00:07]} 60. Bxa6 {[%clk 0:00:12]}  Kh6 {[%clk 0:00:08]} 61. Be2 {[%clk 0:00:12]}  Kg5 {[%clk 0:00:09]} 62. Rb4 {[%clk 0:00:13]}  Kh6 {[%clk 0:00:08]} 63. Rg4 {[%clk 0:00:13]}  g5 {[%clk 0:00:09]} 64. Kg3 {[%clk 0:00:13]}  Kg6 {[%clk 0:00:10]} 65. Bd3+ {[%clk 0:00:14]}  Kh6 {[%clk 0:00:10]} 66. Kf3 {[%clk 0:00:14]}  Kh5 {[%clk 0:00:09]} 67. Bf5 {[%clk 0:00:14]}  Kh6 {[%clk 0:00:09]} 68. Ke4 {[%clk 0:00:15]}  Kh5 {[%clk 0:00:10]} 69. Ke5 {[%clk 0:00:16]}  Kh6 {[%clk 0:00:10]} 70. Kf6 {[%clk 0:00:16]}  Kh5 {[%clk 0:00:11]} 71. Rxg5+ {[%clk 0:00:16]}  Kh6 {[%clk 0:00:12]} 72. Rg3 {[%clk 0:00:16]}  Kh5 {[%clk 0:00:12]} 73. Rh3# {[%clk 0:00:17]} 1-0


[Site "https://www.chess.com"]

[Event "Titled Tuesday Blitz June 13 Early 2023"]
[White "Petrova, Irina"]
[Black "Di Benedetto, Edoardo"]
[WhiteFideId "14124122"]
[BlackFideId "875740"]
[WhiteElo "2084"]
[BlackElo "2296"]
[Result "0-1"]
[Round "1"]
[TimeControl "180+2"]
[Date "2023.06.13"]
[WhiteClock "0:00:48"]
[BlackClock "0:01:10"]
[Board "109"]

1. e4 {[%clk 0:02:59]}  e6 {[%clk 0:02:59]} 2. d4 {[%clk 0:02:59]}  d5 {[%clk 0:03:00]} 3. Nc3 {[%clk 0:03:00]}  Nf6 {[%clk 0:03:00]} 4. Bg5 {[%clk 0:03:00]}  Bb4 {[%clk 0:03:00]} 5. e5 {[%clk 0:02:54]}  h6 {[%clk 0:03:00]} 6. Bd2 {[%clk 0:02:54]}  Bxc3 {[%clk 0:02:59]} 7. bxc3 {[%clk 0:02:55]}  Ne4 {[%clk 0:02:59]} 8. h4 {[%clk 0:02:51]}  c5 {[%clk 0:02:58]} 9. Qg4 {[%clk 0:02:49]}  Kf8 {[%clk 0:02:54]} 10. Bd3 {[%clk 0:02:47]}  Nxd2 {[%clk 0:02:54]} 11. Kxd2 {[%clk 0:02:48]}  c4 {[%clk 0:02:54]} 12. Be2 {[%clk 0:02:48]}  Nc6 {[%clk 0:02:54]} 13. Rh3 {[%clk 0:02:45]}  b5 {[%clk 0:02:54]} 14. Rg3 {[%clk 0:02:45]}  Rg8 {[%clk 0:02:54]} 15. Nh3 {[%clk 0:02:43]}  a5 {[%clk 0:02:29]} 16. a3 {[%clk 0:02:39]}  Rb8 {[%clk 0:02:24]} 17. Nf4 {[%clk 0:02:34]}  Ne7 {[%clk 0:02:24]} 18. Rf3 {[%clk 0:02:27]}  Nf5 {[%clk 0:02:19]} 19. Qh3 {[%clk 0:02:17]}  Ke8 {[%clk 0:02:10]} 20. Rh1 {[%clk 0:02:08]}  b4 {[%clk 0:02:09]} 21. axb4 {[%clk 0:02:08]}  axb4 {[%clk 0:02:09]} 22. g4 {[%clk 0:01:55]}  bxc3+ {[%clk 0:02:06]} 23. Rxc3 {[%clk 0:01:54]}  Nxd4 {[%clk 0:02:04]} 24. Nh5 {[%clk 0:01:28]}  Qa5 {[%clk 0:01:50]} 25. g5 {[%clk 0:01:00]}  hxg5 {[%clk 0:01:46]} 26. hxg5 {[%clk 0:00:59]}  Nb5 {[%clk 0:01:47]} 27. Nxg7+ {[%clk 0:00:55]}  Rxg7 {[%clk 0:01:26]} 28. Qh8+ {[%clk 0:00:55]}  Kd7 {[%clk 0:01:12]} 29. Qxg7 {[%clk 0:00:54]}  Qxc3+ {[%clk 0:01:12]} 30. Kd1 {[%clk 0:00:54]}  Nd4 {[%clk 0:01:09]} 31. Qxf7+ {[%clk 0:00:54]}  Kc6 {[%clk 0:01:10]} 32. Qe8+ {[%clk 0:00:51]}  Bd7 {[%clk 0:01:09]} 33. Qxb8 {[%clk 0:00:47]}  Qxc2+ {[%clk 0:01:09]} 34. Ke1 {[%clk 0:00:48]}  Qxe2# {[%clk 0:01:10]} 0-1


[Site "https://www.chess.com"]

[Event "Titled Tuesday Blitz June 13 Early 2023"]
[White "Matinian, Nikita"]
[Black "Herzog2012"]
[WhiteFideId "24129100"]
[WhiteElo "2422"]
[BlackElo "2398"]
[Result "1-0"]
[Round "1"]
[TimeControl "180+2"]
[Date "2023.06.13"]
[WhiteClock "0:00:20"]
[BlackClock "0:00:00"]
[Board "110"]

1. e4 {[%clk 0:03:00]}  c5 {[%clk 0:02:59]} 2. Nf3 {[%clk 0:03:00]}  Nc6 {[%clk 0:02:59]} 3. d4 {[%clk 0:03:01]}  cxd4 {[%clk 0:02:59]} 4. Nxd4 {[%clk 0:03:02]}  Nf6 {[%clk 0:02:59]} 5. Nc3 {[%clk 0:03:02]}  d6 {[%clk 0:03:00]} 6. Bg5 {[%clk 0:03:01]}  e6 {[%clk 0:02:59]} 7. Qd3 {[%clk 0:03:01]}  Be7 {[%clk 0:02:59]} 8. O-O-O {[%clk 0:02:54]}  O-O {[%clk 0:02:59]} 9. f4 {[%clk 0:02:51]}  e5 {[%clk 0:02:57]} 10. Nf5 {[%clk 0:02:23]}  Bxf5 {[%clk 0:02:53]} 11. exf5 {[%clk 0:02:24]}  Qa5 {[%clk 0:02:52]} 12. Kb1 {[%clk 0:02:18]}  h6 {[%clk 0:02:41]} 13. Bxf6 {[%clk 0:02:08]}  Bxf6 {[%clk 0:02:42]} 14. Nd5 {[%clk 0:02:08]}  Qd8 {[%clk 0:02:36]} 15. g3 {[%clk 0:01:30]}  a5 {[%clk 0:02:19]} 16. a3 {[%clk 0:01:24]}  Re8 {[%clk 0:01:59]} 17. Bg2 {[%clk 0:01:23]}  Rb8 {[%clk 0:01:39]} 18. Rhe1 {[%clk 0:01:16]}  Kf8 {[%clk 0:01:24]} 19. Nxf6 {[%clk 0:01:12]}  Qxf6 {[%clk 0:01:23]} 20. Bxc6 {[%clk 0:00:58]}  bxc6 {[%clk 0:01:21]} 21. Qxd6+ {[%clk 0:00:58]}  Qxd6 {[%clk 0:01:19]} 22. Rxd6 {[%clk 0:00:59]}  exf4 {[%clk 0:01:09]} 23. Rxe8+ {[%clk 0:00:58]}  Kxe8 {[%clk 0:00:46]} 24. gxf4 {[%clk 0:00:59]}  Rc8 {[%clk 0:00:33]} 25. f6 {[%clk 0:00:58]}  Kf8 {[%clk 0:00:22]} 26. fxg7+ {[%clk 0:00:53]}  Kxg7 {[%clk 0:00:23]} 27. c4 {[%clk 0:00:53]}  h5 {[%clk 0:00:20]} 28. Kc2 {[%clk 0:00:53]}  h4 {[%clk 0:00:20]} 29. b4 {[%clk 0:00:51]}  axb4 {[%clk 0:00:19]} 30. axb4 {[%clk 0:00:52]}  Re8 {[%clk 0:00:06]} 31. Rxc6 {[%clk 0:00:36]}  Re2+ {[%clk 0:00:06]} 32. Kd3 {[%clk 0:00:36]}  Rxh2 {[%clk 0:00:07]} 33. Rc5 {[%clk 0:00:36]}  Kg6 {[%clk 0:00:03]} 34. Rg5+ {[%clk 0:00:36]}  Kh6 {[%clk 0:00:03]} 35. Rg8 {[%clk 0:00:36]}  Kh7 {[%clk 0:00:03]} 36. Rg1 {[%clk 0:00:34]}  h3 {[%clk 0:00:02]} 37. b5 {[%clk 0:00:34]}  Rg2 {[%clk 0:00:01]} 38. Rh1 {[%clk 0:00:33]}  h2 {[%clk 0:00:01]} 39. b6 {[%clk 0:00:33]}  Rb2 {[%clk 0:00:01]} 40. c5 {[%clk 0:00:32]}  Kg6 {[%clk 0:00:02]} 41. Kc4 {[%clk 0:00:32]}  Kf5 {[%clk 0:00:01]} 42. Kd5 {[%clk 0:00:33]}  Kxf4 {[%clk 0:00:02]} 43. Rxh2 {[%clk 0:00:28]}  Rxh2 {[%clk 0:00:01]} 44. b7 {[%clk 0:00:28]}  Rb2 {[%clk 0:00:01]} 45. c6 {[%clk 0:00:28]}  Rd2+ {[%clk 0:00:02]} 46. Kc5 {[%clk 0:00:28]}  Rb2 {[%clk 0:00:02]} 47. c7 {[%clk 0:00:22]}  Rxb7 {[%clk 0:00:02]} 48. c8=Q {[%clk 0:00:22]}  Re7 {[%clk 0:00:02]} 49. Qf8 {[%clk 0:00:20]}  Re5+ {[%clk 0:00:01]} 50. Kd6 {[%clk 0:00:20]}  f5 {[%clk 0:00:02]} 51. Qh6+ {[%clk 0:00:21]}  Ke4 {[%clk 0:00:02]} 52. Qh1+ {[%clk 0:00:21]}  Kd4 {[%clk 0:00:00]} 53. Qa1+ {[%clk 0:00:20]} 1-0


[Site "https://www.chess.com"]

[Event "Titled Tuesday Blitz June 13 Early 2023"]
[White "Gracia Alvarez, Gerardo Antonio"]
[Black "Rakotomaharo, Fy Antenaina"]
[WhiteFideId "5109124"]
[BlackFideId "13100050"]
[WhiteElo "2160"]
[BlackElo "2427"]
[Result "0-1"]
[Round "1"]
[TimeControl "180+2"]
[Date "2023.06.13"]
[WhiteClock "0:00:20"]
[BlackClock "0:01:18"]
[Board "111"]

1. d4 {[%clk 0:02:58]}  d5 {[%clk 0:03:00]} 2. c4 {[%clk 0:02:58]}  e5 {[%clk 0:03:00]} 3. dxe5 {[%clk 0:02:57]}  d4 {[%clk 0:03:00]} 4. Nf3 {[%clk 0:02:57]}  Nc6 {[%clk 0:03:00]} 5. a3 {[%clk 0:02:53]}  a5 {[%clk 0:03:00]} 6. g3 {[%clk 0:02:42]}  Be6 {[%clk 0:02:58]} 7. Nbd2 {[%clk 0:02:41]}  Qd7 {[%clk 0:02:56]} 8. b3 {[%clk 0:02:34]}  h6 {[%clk 0:02:51]} 9. Bb2 {[%clk 0:02:34]}  g5 {[%clk 0:02:52]} 10. Qc2 {[%clk 0:02:22]}  g4 {[%clk 0:02:45]} 11. Nh4 {[%clk 0:02:22]}  Nxe5 {[%clk 0:02:45]} 12. Bg2 {[%clk 0:02:19]}  c6 {[%clk 0:02:44]} 13. Be4 {[%clk 0:02:17]}  Nf6 {[%clk 0:02:42]} 14. Bf5 {[%clk 0:02:15]}  Bg7 {[%clk 0:02:21]} 15. Bxe6 {[%clk 0:02:14]}  fxe6 {[%clk 0:02:22]} 16. Ng6 {[%clk 0:02:10]}  Nxg6 {[%clk 0:02:18]} 17. Qxg6+ {[%clk 0:02:10]}  Kf8 {[%clk 0:02:19]} 18. Ne4 {[%clk 0:02:00]}  Nxe4 {[%clk 0:02:17]} 19. Qxe4 {[%clk 0:01:59]}  h5 {[%clk 0:02:18]} 20. O-O-O {[%clk 0:01:48]}  Rd8 {[%clk 0:02:04]} 21. f3 {[%clk 0:01:48]}  gxf3 {[%clk 0:02:03]} 22. Rhf1 {[%clk 0:01:47]}  Kg8 {[%clk 0:02:03]} 23. Rxf3 {[%clk 0:01:46]}  e5 {[%clk 0:01:49]} 24. Rdf1 {[%clk 0:01:38]}  Qg4 {[%clk 0:01:49]} 25. Qc2 {[%clk 0:01:22]}  Rh6 {[%clk 0:01:43]} 26. Kb1 {[%clk 0:01:12]}  Rhd6 {[%clk 0:01:39]} 27. c5 {[%clk 0:01:00]}  Rd5 {[%clk 0:01:38]} 28. b4 {[%clk 0:00:58]}  axb4 {[%clk 0:01:38]} 29. axb4 {[%clk 0:00:59]}  Kh8 {[%clk 0:01:38]} 30. Rf7 {[%clk 0:00:53]}  R5d7 {[%clk 0:01:38]} 31. Qc4 {[%clk 0:00:50]}  Rxf7 {[%clk 0:01:36]} 32. Rxf7 {[%clk 0:00:51]}  Qg6+ {[%clk 0:01:27]} 33. Ka2 {[%clk 0:00:43]}  Ra8+ {[%clk 0:01:27]} 34. Kb3 {[%clk 0:00:44]}  Qb1 {[%clk 0:01:22]} 35. Qc1 {[%clk 0:00:22]}  Qa2+ {[%clk 0:01:18]} 36. Kc2 {[%clk 0:00:20]}  Qxf7 {[%clk 0:01:18]} 0-1


[Site "https://www.chess.com"]

[Event "Titled Tuesday Blitz June 13 Early 2023"]
[White "Fus, Jakub"]
[Black "San Thit Lwin"]
[WhiteFideId "1193023"]
[BlackFideId "13001272"]
[WhiteElo "2335"]
[BlackElo "2232"]
[Result "1-0"]
[Round "1"]
[TimeControl "180+2"]
[Date "2023.06.13"]
[WhiteClock "0:00:17"]
[BlackClock "0:00:00"]
[Board "114"]

1. e4 {[%clk 0:02:57]}  Nf6 {[%clk 0:03:00]} 2. e5 {[%clk 0:02:56]}  Nd5 {[%clk 0:03:01]} 3. d4 {[%clk 0:02:56]}  d6 {[%clk 0:03:01]} 4. Nf3 {[%clk 0:02:56]}  Bg4 {[%clk 0:03:02]} 5. Be2 {[%clk 0:02:55]}  e6 {[%clk 0:03:02]} 6. O-O {[%clk 0:02:55]}  Be7 {[%clk 0:03:01]} 7. c4 {[%clk 0:02:53]}  Nb6 {[%clk 0:03:02]} 8. Nc3 {[%clk 0:02:53]}  O-O {[%clk 0:03:01]} 9. b3 {[%clk 0:02:51]}  Nc6 {[%clk 0:03:00]} 10. exd6 {[%clk 0:02:42]}  cxd6 {[%clk 0:03:01]} 11. Be3 {[%clk 0:02:42]}  d5 {[%clk 0:02:51]} 12. c5 {[%clk 0:02:33]}  Nc8 {[%clk 0:02:51]} 13. Rb1 {[%clk 0:02:22]}  Bf6 {[%clk 0:02:36]} 14. b4 {[%clk 0:02:22]}  a6 {[%clk 0:02:35]} 15. a4 {[%clk 0:02:22]}  N8e7 {[%clk 0:02:27]} 16. b5 {[%clk 0:02:18]}  axb5 {[%clk 0:02:28]} 17. axb5 {[%clk 0:02:19]}  Na5 {[%clk 0:02:28]} 18. b6 {[%clk 0:02:07]}  Nf5 {[%clk 0:02:23]} 19. Nb5 {[%clk 0:02:06]}  Bxf3 {[%clk 0:02:10]} 20. Bxf3 {[%clk 0:01:57]}  Nxe3 {[%clk 0:02:08]} 21. fxe3 {[%clk 0:01:57]}  Nc4 {[%clk 0:02:09]} 22. Re1 {[%clk 0:01:29]}  Bg5 {[%clk 0:02:07]} 23. e4 {[%clk 0:01:24]}  Be3+ {[%clk 0:01:40]} 24. Kh1 {[%clk 0:01:22]}  Qh4 {[%clk 0:01:40]} 25. g3 {[%clk 0:01:15]}  Qh3 {[%clk 0:01:32]} 26. Bg2 {[%clk 0:01:11]}  Qh6 {[%clk 0:01:27]} 27. exd5 {[%clk 0:01:10]}  Bf2 {[%clk 0:01:15]} 28. d6 {[%clk 0:00:58]}  Bxg3 {[%clk 0:01:14]} 29. h3 {[%clk 0:00:58]}  Bxe1 {[%clk 0:00:54]} 30. Qxe1 {[%clk 0:00:57]}  Na3 {[%clk 0:00:45]} 31. Nxa3 {[%clk 0:00:33]}  Rxa3 {[%clk 0:00:46]} 32. Ra1 {[%clk 0:00:33]}  Rfa8 {[%clk 0:00:34]} 33. Rxa3 {[%clk 0:00:33]}  Rxa3 {[%clk 0:00:33]} 34. d7 {[%clk 0:00:26]}  Qg5 {[%clk 0:00:19]} 35. Qe5 {[%clk 0:00:24]}  Qd8 {[%clk 0:00:09]} 36. Qc7 {[%clk 0:00:24]}  Ra8 {[%clk 0:00:08]} 37. Bxb7 {[%clk 0:00:22]}  Qh4 {[%clk 0:00:06]} 38. Qc8+ {[%clk 0:00:19]}  Qd8 {[%clk 0:00:00]} 39. Bxa8 {[%clk 0:00:17]} 1-0


[Site "https://www.chess.com"]

[Event "Titled Tuesday Blitz June 13 Early 2023"]
[White "Koridze, Lile"]
[Black "Maevsky, Nikolay"]
[WhiteFideId "13612514"]
[BlackFideId "4198220"]
[WhiteElo "2047"]
[BlackElo "2021"]
[Result "0-1"]
[Round "1"]
[TimeControl "180+2"]
[Date "2023.06.13"]
[WhiteClock "0:00:02"]
[BlackClock "0:00:09"]
[Board "119"]

1. d4 {[%clk 0:02:57]}  d5 {[%clk 0:03:00]} 2. c4 {[%clk 0:02:51]}  c6 {[%clk 0:03:00]} 3. Nf3 {[%clk 0:02:44]}  e6 {[%clk 0:02:59]} 4. e3 {[%clk 0:02:43]}  Nd7 {[%clk 0:02:56]} 5. Nbd2 {[%clk 0:02:42]}  f5 {[%clk 0:02:51]} 6. Bd3 {[%clk 0:02:31]}  Bd6 {[%clk 0:02:50]} 7. b3 {[%clk 0:02:29]}  Qe7 {[%clk 0:02:49]} 8. O-O {[%clk 0:02:26]}  Nh6 {[%clk 0:02:49]} 9. Bb2 {[%clk 0:02:25]}  Nf7 {[%clk 0:02:49]} 10. Qc2 {[%clk 0:02:17]}  O-O {[%clk 0:02:48]} 11. g3 {[%clk 0:02:10]}  b6 {[%clk 0:02:48]} 12. Ne1 {[%clk 0:02:05]}  Bb7 {[%clk 0:02:48]} 13. Ng2 {[%clk 0:02:03]}  Nf6 {[%clk 0:02:43]} 14. f4 {[%clk 0:02:04]}  Ne4 {[%clk 0:02:43]} 15. Nf3 {[%clk 0:02:03]}  Rac8 {[%clk 0:02:41]} 16. Ne5 {[%clk 0:02:03]}  c5 {[%clk 0:02:41]} 17. Qe2 {[%clk 0:01:58]}  Rfd8 {[%clk 0:02:35]} 18. Rac1 {[%clk 0:01:57]}  cxd4 {[%clk 0:02:09]} 19. exd4 {[%clk 0:01:54]}  Bb8 {[%clk 0:02:07]} 20. cxd5 {[%clk 0:01:49]}  exd5 {[%clk 0:02:02]} 21. Ne3 {[%clk 0:01:40]}  Nfd6 {[%clk 0:02:02]} 22. Ba6 {[%clk 0:01:37]}  g6 {[%clk 0:01:52]} 23. Ba3 {[%clk 0:01:23]}  Qe6 {[%clk 0:01:45]} 24. Bxd6 {[%clk 0:01:16]}  Nxd6 {[%clk 0:01:35]} 25. Bxb7 {[%clk 0:01:12]}  Nxb7 {[%clk 0:01:35]} 26. Qb5 {[%clk 0:00:53]}  Bxe5 {[%clk 0:00:55]} 27. fxe5 {[%clk 0:00:51]}  Kg7 {[%clk 0:00:43]} 28. Rxc8 {[%clk 0:00:48]}  Rxc8 {[%clk 0:00:43]} 29. Nxd5 {[%clk 0:00:36]}  a6 {[%clk 0:00:43]} 30. Qxb6 {[%clk 0:00:28]}  Qxd5 {[%clk 0:00:41]} 31. Qf6+ {[%clk 0:00:25]}  Kg8 {[%clk 0:00:38]} 32. e6 {[%clk 0:00:26]}  Nd6 {[%clk 0:00:33]} 33. e7 {[%clk 0:00:20]}  Nf7 {[%clk 0:00:23]} 34. Re1 {[%clk 0:00:18]}  Re8 {[%clk 0:00:23]} 35. Rc1 {[%clk 0:00:15]}  Qd6 {[%clk 0:00:18]} 36. Qxd6 {[%clk 0:00:16]}  Nxd6 {[%clk 0:00:18]} 37. Rc6 {[%clk 0:00:16]}  Nb5 {[%clk 0:00:19]} 38. d5 {[%clk 0:00:16]}  Rxe7 {[%clk 0:00:18]} 39. Rxa6 {[%clk 0:00:16]}  Rd7 {[%clk 0:00:18]} 40. a4 {[%clk 0:00:15]}  Nd4 {[%clk 0:00:18]} 41. Ra8+ {[%clk 0:00:14]}  Kf7 {[%clk 0:00:18]} 42. b4 {[%clk 0:00:15]}  Rxd5 {[%clk 0:00:18]} 43. Ra7+ {[%clk 0:00:15]}  Kf6 {[%clk 0:00:17]} 44. Rxh7 {[%clk 0:00:15]}  Nf3+ {[%clk 0:00:17]} 45. Kf2 {[%clk 0:00:15]}  Ng5 {[%clk 0:00:18]} 46. Ra7 {[%clk 0:00:15]}  Rd2+ {[%clk 0:00:17]} 47. Ke3 {[%clk 0:00:16]}  Rxh2 {[%clk 0:00:16]} 48. b5 {[%clk 0:00:16]}  Rb2 {[%clk 0:00:16]} 49. Ra6+ {[%clk 0:00:14]}  Ne6 {[%clk 0:00:15]} 50. b6 {[%clk 0:00:14]}  Ke5 {[%clk 0:00:15]} 51. a5 {[%clk 0:00:13]}  Rb3+ {[%clk 0:00:13]} 52. Kf2 {[%clk 0:00:13]}  Nc5 {[%clk 0:00:13]} 53. Ra8 {[%clk 0:00:13]}  Rb5 {[%clk 0:00:13]} 54. Rg8 {[%clk 0:00:06]}  Kf6 {[%clk 0:00:13]} 55. Rf8+ {[%clk 0:00:06]}  Kg7 {[%clk 0:00:13]} 56. Ra8 {[%clk 0:00:06]}  Kh6 {[%clk 0:00:13]} 57. Ra7 {[%clk 0:00:05]}  Kg5 {[%clk 0:00:13]} 58. Ra8 {[%clk 0:00:06]}  Kg4 {[%clk 0:00:13]} 59. Rg8 {[%clk 0:00:06]}  g5 {[%clk 0:00:13]} 60. Ra8 {[%clk 0:00:05]}  Ne4+ {[%clk 0:00:10]} 61. Ke3 {[%clk 0:00:05]}  Nd6 {[%clk 0:00:10]} 62. Rd8 {[%clk 0:00:04]}  Nc4+ {[%clk 0:00:09]} 63. Kf2 {[%clk 0:00:04]}  Nxa5 {[%clk 0:00:10]} 64. Rd4+ {[%clk 0:00:03]}  Kh5 {[%clk 0:00:09]} 65. Ra4 {[%clk 0:00:04]}  Nc6 {[%clk 0:00:09]} 66. Ra6 {[%clk 0:00:04]}  Nd4 {[%clk 0:00:09]} 67. Ra4 {[%clk 0:00:04]}  Ne6 {[%clk 0:00:09]} 68. Ra6 {[%clk 0:00:04]}  Nc5 {[%clk 0:00:09]} 69. Ra4 {[%clk 0:00:02]}  Nxa4 {[%clk 0:00:09]} 0-1


[Site "https://www.chess.com"]